{"text_format":"1","workbook":"xlsx","n_sheets":3,"sheets":["Лист1","Лист2","Лист3"],"not_rendered":{"charts":0,"images":0,"macros":1,"external_links":0,"defined_names":1,"comments":0,"pivot_tables":0},"unopened":[],"bounds":{"document_bytes":16777216,"sheet_cells":100000,"rows_first":2000,"rows_last":500,"rows_between":2000,"halvings":0,"cell_chars":16384,"cell_head_chars":4096},"cells_cut":0,"cells_raw":0,"read":"whole","date_system":"1900"}

{"sheet":"Лист1","index":0,"n_rows":73,"n_cols":78,"rows_kept":73,"cut":false,"hidden":false,"merged":[[9,62,9,63]]}
[]
[]
[]
[null,null,null,null,null,null,null,null,null,null,null,null,null,null,null,null,null,null,null,null,null,null,null,null,null,null,null,1,null,null,null,null,null,null,null,null,null,null,null,null,null,null,null,null,null,null,null,null,null,null,null,null,null,null,null,null,null,null,null,null,null,null,null,null,null,null,null,null,null,null,null,null,null,null,{"$f":"SUM(AB4:BV4)","v":1}]
[]
[null,null,null,null,null,null,null,null,null,null,null,null,null,null,null,null,null,null,null,null,null,"Пом. дир. по реализ.круп. инфрастр.   Костромин А.С. ",null,"Пом. дир. по кап.стр. Трубников А.В. ",null,"Ученый секретарь\n Чеплаков А.П",null,null,null,null,null,"Почетный директор   Савин И.А.",null,null,null,"Группа советников и консультантов дирекции"]
[null,null,null,null,null,null,null,null,null,null,null,null,null,null,null,null,null,null,null,null,null,1,null,1,null,1,null,null,null,null,null,1,null,null,null,5]
[null,null,null,null,null,null,null,null,null,null,null,null,null,null,null,null,null,null,null,null,null,0,null,0,null,0,null,null,null,null,null,0,null,null,null,1.5,null,null,null,null,null,null,null,null,null,null,null,null,null,null,null,null,null,null,null,null,null,null,null,null,null,null,null,null,null,null,null,null,null,null,null,null,null,null,{"$f":"SUM(V7:BV7)","v":9}]
[null,null,null,null,null,null,null,null,null,null,null,null,null,null,null,null,null,null,null,null,null,null,null,null,null,null,null,null,null,null,null,null,null,null,null,null,null,null,null,null,null,null,null,null,null,null,null,null,null,null,null,null,null,null,null,null,null,null,null,null,null,null,null,null,null,null,null,null,null,null,null,null,null,null,null,{"$f":"AJ8","v":1.5}]
[null,null,null,null,null,null,null,null,null,null,null,null,null,null,null,null,null,null,null,null,null,null,null,null,null,null,null,null,null,null,null,null,null,null,null,null,null,null,null,null,null,null,null,null,null,null,null,null,null,null,null,null,null,null,null,null,null,null,null,null,null,null,"Главный инженер   Агапов Н.Н.",null,null,null,"Пом. дир. по фин.вопр. Слесаренко А.В.",null,"Пом. по общ. вопросам Анисимов Ю.С. "]
[null,null,null,null,null,null,null,null,null,null,null,null,null,null,null,null,null,null,null,null,null,4,null,null,null,null,null,null,null,null,null,null,null,null,null,null,null,null,null,null,null,null,null,null,null,null,null,null,null,null,null,null,null,null,null,null,null,null,null,null,null,null,1,null,null,null,1,null,1,null,null,null,null,null,null,{"$f":"SUM(A11:BW11)","v":7}]
[null,null,null,null,null,null,null,null,null,null,null,null,null,null,null,null,null,null,null,null,null,null,null,null,null,0,null,null,null,null,null,null,null,null,null,null,null,null,null,null,null,null,null,null,null,null,null,null,null,null,null,null,null,null,null,null,null,null,null,null,null,null,null,0,null,null,0,null,0,null,null,null,null,null,null,null,{"$f":"SUM(BL12:BX12)","v":0}]
[]
[]
[]
[null,{"$f":"B21+D21+F21+H21+J21+L21+N21+P21+R21+T21+V21","v":419.7},null,null,null,null,null,null,null,null,null,null,null,null,null,null,null,null,null,null,null,null,null,{"$f":"X21+Z21+AB21+1","v":78.8},null,null,null,null,null,{"$f":"AD21+AF21+AH21+AJ21+1","v":162.72999999999996},null,null,null,null,null,null,null,null,null,{"$f":"AN21+AP21+AR21+AT21+1","v":110.6},null,null,null,null,null,null,null,{"$f":"AX21+AZ21+BB21+BD21+AV21","v":73.2},null,null,null,null,null,null,null,null,null,4,null,null,null,{"$f":"BJ21+BL21+BH21","v":114.5},null,null,null,null,null,null,{"$f":"BQ21+BS21","v":55.5},null,null,null,null,{"$f":"SUM(A16:BU16)+BO21+BF21+AL21","v":1113.5300000000002}]
[null,{"$f":"B22+D22+F22+H22+J22+L22+N22+P22+R22","v":9},null,null,null,null,null,null,null,null,null,null,null,null,null,null,null,null,null,null,null,null,null,{"$f":"X22+Z22+AB22","v":13},null,null,null,null,null,{"$f":"AD22+AF22+AH22+AJ22","v":44},null,null,null,null,null,null,null,null,null,{"$f":"AT22+AR22+AP22+AN22","v":11.5},null,null,null,null,null,null,null,{"$f":"AX22+AZ22+BB22","v":10},null,null,null,null,null,null,null,null,null,0,null,null,null,0,null,null,null,null,null,null,0,null,null,null,null,null,{"$f":"SUM(A17:BV17)+BO22","v":88.5}]
[]
[]
[null,"Управление ",null,"НЭСОП Кобец А.Г.",null,"НЭОСМТ Никифоров Д.Н.",null,"НЭОУС Сумбаев А.П.",null,"НЭОИФПУ Сидоров А.И",null,"НТОП  Волков В.И",null,"НЭОИКН Тузиков  А.В.",null,"НЭОРС Бровко О.И.",null,"НИОСЭН Карпинский В.Н",null,"НИКО Константинов  А.В.",null,"ДСН Алфеев А.В",null,"НЭОФТИ Малахов А.И",null,"НЭОСФМС Пискунов Н.М.",null,"СФСКЯ Кривенков Д.О.",null,"НЭОМЦД Головатюк В.М",null,"НЭОФСТИ NICA Теряев О.В.  ",null,"НЭОССАиРП Корзенеа А.Ю. ",null,"НЭОБМН Капишин М.Н. ",null,"СИСТ Долбилов А.Г.",null,"НЭФТИ на RHIC  Панебратцев Ю.А.",null,"НЭОФТИ   на LHC Водопьянов А.С.",null,"НЭОФ на CMS Коржавин В.Ю.",null,"Сект.физики на ATLAS Солошенко А.А.",null,"Управление ",null,"НЭОАФИ Слепнев В.М.",null,"НМОКТС Мурин Ю.А. ",null,"СРС Шаляпин  В.Н.",null,"СКИ Филиппов Ю.П.",null,"ИЭТО Семин Н.В.",null,"Управление",null,"КО Топилин Н.Д. ",null,"ЦОЭП  Цветков А.А. ",null,null,"ПФБ",null,"Адм. бюро",null,"Хоз. отдел Новикова Е.Н. "]
[null,8.3000000000000007,null,6.75,null,{"$f":"SUM(F25,F31,F37,F43,F46,F52,F55,F61,F67,F72)","v":114.75},null,9,null,{"$f":"SUM(J25,J31,J34,J40,J43)","v":15.6},null,37.5,null,{"$f":"SUM(N25,N31,N34,N40,N43,N49,N55,N61,N64,N67)","v":83.3},null,28,null,47,null,51,null,18.5,null,35.799999999999997,null,27,null,15,null,69.099999999999994,null,20.5,null,44.3,null,27.83,null,10.5,null,33,null,44.2,null,25.9,null,6.5,null,4,null,18,null,33.950000000000003,null,11.25,null,6,null,67,null,9,null,29,null,76.5,null,null,17,null,15.5,null,40]
[null,1,null,1,null,{"$f":"SUM(F26,F32,F38,F44,F47,F53,F56,F62,F68,F73)","v":2},null,0,null,{"$f":"SUM(J26,J32,J35,J41,J44)","v":0},null,2,null,{"$f":"SUM(N26,N32,N35,N41,N44,N50,N56,N62,N65,N68)","v":2},null,0,null,1,null,0,null,0,null,12,null,0,null,1,null,15.5,null,12.5,null,11,null,5,null,0,null,2.5,null,2,null,4,null,3,null,0,null,1,null,8,null,1,null,0,null,0,null,0,null,0,null,0,null,null,1,null,0,null,0]
[null,null,null,null,null,null,null,null,null,null,null,null,null,null,null,null,null,null,null,null,null,null,null,null,null,null,null,null,null,null,null,null,null,null,null,null,null,null,null,null,null,null,null,null,null,null,null,null,null,null,null,null,null,null,null,null,null,null,null,null,null,null,null,null,null,null,null,null,null,null,null,null,null,null,null,null,null,"     "]
[null," ",null," ",null,"    Руководство",null," ",null,"Руководство",null,"Руководство",null,"Руководство",null,"Руководство",null,"Руководство",null,"Руководство",null,null,null,"Руководство",null,"Руководство",null,null,null,"Руководство",null,"Руководство",null,"Сектор 1  Мадигожин Д.Т.",null,"Руководство",null,null,null,"Руководство",null,null,null,"Руководство",null,null,null,null,null,"Руководство",null,"Руководство",null,null,null,"Управление",null,"Руководство",null,null,null,"КБ №1 Шабунов А.В.",null,"Руководство",null,null,"Руководство",null,"Группа  1",null,"Руководство"]
[null,8.3000000000000007,null,6.75,null,14,null,9,null,1.1000000000000001,null,2,null,3.6,null,1,null,3,null,2,null,7.5,null,5.5,null,2,null,15,null,5.5,null,1,null,9.3000000000000007,null,1,null,null,null,3,null,null,null,3,null,6.5,null,4,null,1,null,1,null,11.25,null,2,null,1,null,9,null,4,null,3,null,null,1,null,11.5,null,2]
[null,1,null,1,null,0,null,0,null,0,null,0,null,1,null,0,null,0,null,0,null,0,null,2,null,0,null,1,null,1,null,3,null,3,null,0,null,null,null,0,null,null,null,0,null,3,null,0,null,0,null,0,null,1,null,0,null,0,null,0,null,0,null,0,null,null,0,null,0,null,0]
[null,null,null,null,null,null,null,null,null,null,null,null,null,null,null,null,null,null,null," ",null,null,null,null,null,null,null,null,null,null,null,null,null,null,null,null,null,null,null,null,null,null,null,null,null,null,null,null,null,null,null,null,null,null,null,"Группа 1 Микляев В.М.",null,null,null,null,null,"Группа  1 Гусаков Ю.В.",null,null,null,null,null,null,null,null,null,null,null,{"$f":"BW4+BW8+BX11+BV16","v":1130.5300000000002},{"$f":"BY12+BW17+BX9","v":90},"Итого:",{"$f":"BV27+BW27","v":1220.5300000000002}]
[null,null,null,null,null,null,null,null,null,null,null,null,null,null,null,null,null,null,null,null,null,null,null,null,null,null,null,null,null,null,null,null,null,null,null,null,null,null,null,null,null,null,null,null,null,null,null,null,null,null,null,null,null,null,null,4,null,null,null,null,null,9]
[null,null,null,null,null,null,null,null,null,null,null,null,null,null,null,null,null,null,null,null,null,null,null,null,null,null,null,null,null,".",null,null,null,null,null,null,null,null,null,null,null,null,null,null,null,null,null,null,null,null,null,null,null,null,null,0]
[null,null,null,null,null,"Сектор 1",null,null,null,"Сектор 1 Фатеев А.А.",null,"Сектор 1 Михайлов В.А.",null,"Сектор 1",null,"Сектор 1",null,"Сектор №1",null,"Сектор 1 Дорофеев Г.Л.",null,"Группа 1  Пивин Р.В.",null,"Группа 1   Анисимов Ю.С.",null,"Группа 1",null,null,null,"Сектор 1 Мовчан С.А.",null,"Сектор 1  Рогачевский О.В.",null,"Сектор 2    Нагайцев А.П. ",null,"Сектор 1",null,null,null,"Сектор 1 Токарев М.В.",null,"Сектор 1  Батюня Б.Ф.",null,"Сектор 1 Шматов С.В.",null,null,null,null,null,"Сектор 1 Базылев С.Н.",null,"Сектор 1",null,null,null,null,null,"Группа 1 Яковлев В.В.",null,null,null,null,null,"Группа 1",null,null,"Группа 1 Блинникова М.В.",null,"Группа 2 Чеплаков А.П.",null,"Группа 1"]
[null,null,null,null,null,5,null,null,null,3.5,null,12,null,21.9,null,1,null,0,null,6.5,null,null,null,4,null,9,null,null,null,28,null,5,null,15.5,null,14.83,null,null,null,14.5,null,8.1,null,9.1,null,null,null,null,null,14,null,9.1,null,null,null,null,null,14.5,null,null,null,null,null,5,null,null,11,null,4,null,14]
[null,null,null,null,null,0,null,null,null,0,null,1,null,0,null,0,null,0,null,0,null,null,null,1,null,0,null,null,null,0,null,1.5,null,2,null,5,null,null,null,2.5,null,1,null,4,null,null,null,null,null,1,null,3.5,null,null,null,null,null,0,null,null,null,null,null,0,null,null,0,null,0,null,0]
[null,null,null,null,null,null,null,null,null,"Группа 1",null,"Группа 1 Романов С.В.",null,"Группа 1 Базанов А.М.",null,"Группа 1 Шумков В.М.",null,"Группа 1 Осипенков А.Л.",null,"Группа 1",null,null,null,null,null,null,null,null,null,null,null,"группа 2",null,"группа 1     Кокоулина Е.С.",null,null,null,null,null,null,null,null,null,null,null,null,null,null,null,null,null,null,null,null,null,null,null,null,null,null,null,"КБ №2 Серочкин Е.В."]
[null,null,null,null,null,null,null,null,null,2,null,3,null,5,null,15,null,24,null,3,null,null,null,null,null,null,null,null,null,null,null,2,null,3,null,null,null,null,null,null,null,null,null,null,null,null,null,null,null,null,null,null,null,null,null,null,null,null,null,null,null,16]
[null,null,null,null,null,null,null,null,null,0,null,0,null,0,null,0,null,0,null,0,null,null,null,null,null,null,null,null,null,null,null,1,null,3]
[null,null,null,null,null,"Сектор 2",null,null,null,null,null,null,null,null,null,"Группа 2 Иванов Е.В.",null,"Группа 2 Филиппов Н.А.",null,null,null,null,null,"Сектор 1   Литвиненко А.Г. ",null,"Сектор 1 Кириллов Д.А.",null,null,null,"Сектор 2",null,null,null,null,null,"Сектор 2 Замятин Н.И.",null,null,null,"Сектор 2 Юревич В.И.",null,"Сектор 2   Додохов В.Х.",null,"Сектор 2  Горбунов Н.В.",null,null,null,null,null,"Сектор 2",null,"Сектор 2",null,null,null,null,null,"Группа 2 Коробков А.И.",null,null,null,null,null,"Группа 2 Соловьев А.К.",null,null,"Группа 2",null,null,null,"Группа 2"]
[null,null,null,null,null,29,null,null,null,null,null,null,null,null,null,6,null,9.5,null,null,null,null,null,5,null,3.5,null,null,null,25.1,null,null,null,null,null,12,null,null,null,15.5,null,10,null,13.8,null,null,null,null,null,3,null,4,null,null,null,null,null,14,null,null,null,null,null,9,null,null,3,null,null,null,24]
[null,null,null,null,null,0,null,null,null,null,null,null,null,null,null,0,null,0,null,null,null,null,null,4,null,0,null,null,null,5.5,null,null,null,null,null,0,null,null,null,0,null,0,null,0,null,null,null,null,null,0,null,1.5,null,null,null,null,null,0,null,null,null,null,null,0,null,null,0,null,null,null,0]
[null,null,null,null,null,null,null,null,null,"Сектор2",null,"Сектор 2 Рукояткин П.А.",null,"Сектор 2",null,null,null,"Группа 3  Блинов Н.А.",null,"Группа 1  Швидкий Д.С.",null,null,null,null,null,"группа 1",null,null,null,null,null,"Сектор 2       Колесников В.И.",null,"Сектор 3 Кекелидзе Г.Д."]
[null,null,null,null,null,null,null,null,null,6,null,3,null,19.8,null,null,null,10.5,null,12,null,null,null,null,null,3,null,null,null,null,null,8,null,12.5]
[null,null,null,null,null,null,null,null,null,0,null,0,null,1,null,null,null,1,null,0,null,null,null,null,null,0,null,null,null,null,null,7,null,0]
[null,null,null,null,null,"Сектор 3",null,null,null,"Группа 1",null,null,null,"Группа1 Воронин А.А.",null,"Группа 1 Гребенцов А.Ю.",null,null,null,null,null,null,null,"Сектор 3 Афанасьев С.В.",null,null,null,null,null,"Сектор 3          Рослон К.",null,null,null,"Группа 1           Еник Т.Л.",null,null,null,null,null,null,null,"Сектор 3  Балдин А.А.",null,null,null,null,null,null,null,null,null,"Сектор3",null,null,null,null,null,"Груаппа 3  Черняев В.П.",null,null,null,null,null,"Группа 3 Смирнов Е.Г.",null,null,"Группа 3 Цымбулов М.И."]
[null,null,null,null,null,14,null,null,null,3,null,null,null,3,null,5,null,null,null,null,null,null,null,10.3,null,null,null,null,null,6.5,null,null,null,4,null,null,null,null,null,null,null,4.5,null,null,null,null,null,null,null,null,null,19.850000000000001,null,null,null,null,null,37.5,null,null,null,null,null,5,null,null,2]
[null,null,null,null,null,0,null,null,null,0,null,null,null,0,null,0,null,null,null,null,null,null,null,2,null,null,null,null,null,8,null,null,null,3,null,null,null,null,null,null,null,1,null,null,null,null,null,null,null,null,null,3,null,null,null,null,null,0,null,null,null,null,null,0,null,null,1]
[null,null,null,null,null,"группа 1 Петров М.В.",null,null,null,null,null,"Сектор 3 Лебедев Н.И.",null,null,null,null,null,null,null,"Сектор 2 Митрофанова Ю.А.",null,null,null,null,null,"Сектор 2 Ладыгин В.П.",null,null,null,"Группа1     Егоров Д.С.",null,"Группа 1 Герценбергер К.В.",null,null,null,null,null,null,null,null,null," группа 1 "]
[null,null,null,null,null,6,null,null,null,null,null,5.5,null,null,null,null,null,null,null,1,null,null,null,null,null,9.5,null,null,null,4,null,4.5,null,null,null,null,null,null,null,null,null,4]
[null,null,null,null,null,0,null,null,null,null,null,0,null,null,null,null,null,null,null,0,null,null,null,null,null,0,null,null,null,1,null,0,null,null,null,null,null,null,null,null,null,0]
[null,null,null,null,null,null,null,null,null,null,null,"Группа 1 Пиляр Н.В.",null,"Сектор 3 Донец Е.Е.",null,null,null,null,null,"группа 1",null,null,null,"Сектор 4  Зарубин П.И.",null,null,null,null,null,null,null,null,null,null,null,null,null,null,null,null,null,"Сектор 2 Харьюзов П.Р.",null,null,null,null,null,null,null,null,null,null,null,null,null,null,null,null,null,null,null,null,null,"Участок 1 Нукин А.Н."]
[null,null,null,null,null,null,null,null,null,null,null,4,null,12,null,null,null,null,null,18,null,null,null,5,null,null,null,null,null,null,null,null,null,null,null,null,null,null,null,null,null,6.1,null,null,null,null,null,null,null,null,null,null,null,null,null,null,null,null,null,null,null,null,null,20.5]
[null,null,null,null,null,null,null,null,null,null,null,0,null,0,null,null,null,null,null,0,null,null,null,2,null,null,null,null,null,null,null,null,null,null,null,null,null,null,null,null,null,0,null,null,null,null,null,null,null,null,null,null,null,null,null,null,null,null,null,null,null,null,null,0]
[null,null,null,null,null,"Сектор 4 Борисов В.В.",null,null,null,null,null,"Группа 2 Горбачев Е.В.",null,null,null,null,null,null,null,"группа 2 Булах А.П.",null,null,null,"группа  Браднова В.",null,null,null,null,null,null,null,null,null,null,null,null,null,null,null,null,null,"группа 3 Троян А.Ю."]
[null,null,null,null,null,6,null,null,null,null,null,4,null,null,null,null,null,null,null,8.5,null,null,null,2,null,null,null,null,null,null,null,null,null,null,null,null,null,null,null,null,null,6.5]
[null,null,null,null,null,2,null,null,null,null,null,1,null,null,null,null,null,null,null,0,null,null,null,1,null,null,null,null,null,null,null,null,null,null,null,null,null,null,null,null,null,0]
[null,null,null,null,null,"группа 1 Шемчук А.В.",null,null,null,null,null,null,null,"Сектор 4 Фимушкин В.В.",null,null,null,null,null,null,null,null,null," группа 2 Русакова В.В.",null,null,null,null,null,null,null,null,null,null,null,null,null,null,null,null,null,null,null,null,null,null,null,null,null,null,null,null,null,null,null,null,null,null,null,null,null,null,null,"Участок 2 Фирсов Н.В."]
[null,null,null,null,null,9,null,null,null,null,null,null,null,10,null,null,null,null,null,null,null,null,null,4,null,null,null,null,null,null,null,null,null,null,null,null,null,null,null,null,null,null,null,null,null,null,null,null,null,null,null,null,null,null,null,null,null,null,null,null,null,null,null,14.5]
[null,null,null,null,null,0,null,null,null,null,null,null,null,0,null,null,null,null,null,null,null,null,null,0,null,null,null,null,null,null,null,null,null,null,null,null,null,null,null,null,null,null,null,null,null,null,null,null,null,null,null,null,null,null,null,null,null,null,null,null,null,null,null,0]
[null,null,null,null,null,null,null,null,null,null,null,"Сектор 4 Александров В.С."]
[null,null,null,null,null,null,null,null,null,null,null,4]
[null,null,null,null,null,null,null,null,null,null,null,0]
[null,null,null,null,null,"группа 1",null,null,null,null,null,null,null,"Сектор 5 Кобец В.В.",null,null,null,null,null,null,null,null,null,null,null,null,null,null,null,null,null,null,null,null,null,null,null,null,null,null,null,null,null,null,null,null,null,null,null,null,null,null,null,null,null,null,null,null,null,null,null,null,null,"Участок 3  Миловидова В.А."]
[null,null,null,null,null,7,null,null,null,null,null,null,null,1.5,null,null,null,null,null,null,null,null,null,null,null,null,null,null,null,null,null,null,null,null,null,null,null,null,null,null,null,null,null,null,null,null,null,null,null,null,null,null,null,null,null,null,null,null,null,null,null,null,null,2.5]
[null,null,null,null,null,0,null,null,null,null,null,null,null,0,null,null,null,null,null,null,null,null,null,null,null,null,null,null,null,null,null,null,null,null,null,null,null,null,null,null,null,null,null,null,null,null,null,null,null,null,null,null,null,null,null,null,null,null,null,null,null,null,null,0]
[null,null,null,null,null,null,null,null,null,null,null,null,null,"Группа 1 Шабратов В.Г."]
[null,null,null,null,null,null,null,null,null,null,null,null,null,2.5]
[null,null,null,null,null,null,null,null,null,null,null,null,null,0]
[null,null,null,null,null,"группа 2  Коровкин С.А.",null,null,null,null,null,null,null,"группа1",null,null,null,null,null,null,null,null,null,null,null,null,null,null,null,null,null,null,null,null,null,null,null,null,null,null,null,null,null,null,null,null,null,null,null,null,null,null,null,null,null,null,null,null,null,null,null,null,null,"Участок 4 Федюрко Н.В."]
[null,null,null,null,null,17,null,null,null,null,null,null,null,4,null,null,null,null,null,null,null,null,null,null,null,null,null,null,null,null,null,null,null,null,null,null,null,null,null,null,null,null,null,null,null,null,null,null,null,null,null,null,null,null,null,null,null,null,null,null,null,null,null,17]
[null,null,null,null,null,0,null,null,null,null,null,null,null,0,null,null,null,null,null,null,null,null,null,null,null,null,null,null,null,null,null,null,null,null,null,null,null,null,null,null,null,null,null,null,null,null,null,null,null,null,null,null,null,null,null,null,null,null,null,null,null,null,null,0]
[]
[]
[null,null,null,null,null,"группа 3 Новиков М.С."]
[null,null,null,null,null,7.75]
[null,null,null,null,null,0]

{"sheet":"Лист2","index":1,"n_rows":0,"n_cols":0,"rows_kept":0,"cut":false,"hidden":false,"merged":[]}

{"sheet":"Лист3","index":2,"n_rows":0,"n_cols":0,"rows_kept":0,"cut":false,"hidden":false,"merged":[]}